[Event "GrandPrix_29.05"]
[Site "Chess.com"]
[Date "2020.05.29"]
[Round "1"]
[White "v-kazakouski"]
[Black "tianachess"]
[Result "1-0"]
[WhiteElo "2548"]
[BlackElo "2086"]
[TimeControl "600+2"]
[EndTime "9:25:57 PDT"]
[Termination "v-kazakouski won by resignation"]

1. d4 {[%clk 0:10:00]} 1... Nf6 {[%clk 0:09:59.9]} 2. Nf3 {[%clk 0:10:00]} 2...
c5 {[%clk 0:10:00.2]} 3. d5 {[%clk 0:10:00.6]} 3... b5 {[%clk 0:10:00.8]} 4. Bg5
{[%clk 0:09:59]} 4... g6 {[%clk 0:09:26.7]} 5. Bxf6 {[%clk 0:09:24.8]} 5... exf6
{[%clk 0:09:26.6]} 6. e4 {[%clk 0:08:42.4]} 6... a6 {[%clk 0:09:25.2]} 7. a4
{[%clk 0:08:42.6]} 7... bxa4 {[%clk 0:09:25.4]} 8. c3 {[%clk 0:08:35.2]} 8... d6
{[%clk 0:09:20.3]} 9. Qxa4+ {[%clk 0:08:25.9]} 9... Bd7 {[%clk 0:07:46.9]} 10.
Qb3 {[%clk 0:07:53.1]} 10... Qc7 {[%clk 0:06:17.3]} 11. Bd3 {[%clk 0:07:11.4]}
11... Bg7 {[%clk 0:06:06.6]} 12. Nbd2 {[%clk 0:06:58.5]} 12... O-O {[%clk
0:06:05.7]} 13. h3 {[%clk 0:06:33.1]} 13... f5 {[%clk 0:05:54.2]} 14. exf5
{[%clk 0:05:51.9]} 14... Re8+ {[%clk 0:05:49.5]} 15. Kf1 {[%clk 0:05:39]} 15...
Bxf5 {[%clk 0:05:43]} 16. Bxf5 {[%clk 0:05:13.4]} 16... gxf5 {[%clk 0:05:43.3]}
17. Qc2 {[%clk 0:04:24.7]} 17... Qd7 {[%clk 0:05:19.1]} 18. g3 {[%clk
0:04:11.7]} 18... Ra7 {[%clk 0:04:23.5]} 19. Kg2 {[%clk 0:04:04.2]} 19... h6
{[%clk 0:03:30.9]} 20. Ra4 {[%clk 0:03:37.6]} 20... Rb7 {[%clk 0:02:51.1]} 21.
Rf4 {[%clk 0:03:18.5]} 21... Re2 {[%clk 0:01:35.3]} 22. Qd3 {[%clk 0:02:45.1]}
22... Re8 {[%clk 0:01:11.8]} 23. Nc4 {[%clk 0:02:24.4]} 23... a5 {[%clk
0:00:55.8]} 24. Qxf5 {[%clk 0:02:06.2]} 24... Qxf5 {[%clk 0:00:55.7]} 25. Rxf5
{[%clk 0:02:07]} 25... Rd8 {[%clk 0:00:51]} 26. Ra1 {[%clk 0:01:52.3]} 26... Rb5
{[%clk 0:00:43.4]} 27. Rxa5 {[%clk 0:01:24.3]} 27... Rxa5 {[%clk 0:00:43.3]} 28.
Nxa5 {[%clk 0:01:25.4]} 28... Nd7 {[%clk 0:00:27.7]} 29. Nc4 {[%clk 0:01:08.8]}
29... Nf6 {[%clk 0:00:17.4]} 30. Nfd2 {[%clk 0:00:57.1]} 30... Kh7 {[%clk
0:00:17.3]} 31. Kf3 {[%clk 0:00:50.6]} 31... Kg6 {[%clk 0:00:17.8]} 32. g4
{[%clk 0:00:48.6]} 32... h5 {[%clk 0:00:18.1]} 33. Ne4 {[%clk 0:00:42.1]} 33...
hxg4+ {[%clk 0:00:18.8]} 34. hxg4 {[%clk 0:00:42.5]} 34... Nxe4 {[%clk
0:00:17.8]} 35. Kxe4 {[%clk 0:00:43.3]} 35... Re8+ {[%clk 0:00:18.3]} 36. Kf3
{[%clk 0:00:32.3]} 36... Rd8 {[%clk 0:00:19.1]} 37. Rf4 {[%clk 0:00:28.6]} 37...
Rd7 {[%clk 0:00:19]} 38. Re4 {[%clk 0:00:28.5]} 38... Bf6 {[%clk 0:00:16.5]} 39.
Re8 {[%clk 0:00:26.5]} 39... Bg5 {[%clk 0:00:15]} 40. Ke4 {[%clk 0:00:24.4]}
40... Bf6 {[%clk 0:00:14.5]} 41. f4 {[%clk 0:00:23.5]} 41... Bg7 {[%clk
0:00:14.6]} 42. Rc8 {[%clk 0:00:20.2]} 42... Bf6 {[%clk 0:00:13.7]} 43. g5
{[%clk 0:00:18.9]} 43... Be7 {[%clk 0:00:13.9]} 44. Re8 {[%clk 0:00:17.7]} 44...
f6 {[%clk 0:00:13.3]} 45. gxf6 {[%clk 0:00:17.9]} 45... Kxf6 {[%clk 0:00:13.6]}
46. b4 {[%clk 0:00:16.4]} 46... cxb4 {[%clk 0:00:13.8]} 47. cxb4 {[%clk
0:00:18.3]} 47... Rb7 {[%clk 0:00:14.5]} 48. Rc8 {[%clk 0:00:12.6]} 48... Rxb4
{[%clk 0:00:15.1]} 49. Rc6 {[%clk 0:00:13.5]} 49... Kf7 {[%clk 0:00:14.5]} 50.
Kf5 {[%clk 0:00:13]} 50... Rb5 {[%clk 0:00:15.2]} 51. Nxd6+ {[%clk 0:00:11.7]}
51... Bxd6 {[%clk 0:00:15.3]} 52. Rxd6 {[%clk 0:00:12.6]} 52... Ke7 {[%clk
0:00:14.4]} 53. Re6+ {[%clk 0:00:12]} 53... Kd7 {[%clk 0:00:14.2]} 54. Ke5
{[%clk 0:00:13.4]} 54... Rb1 {[%clk 0:00:13.5]} 55. Ra6 {[%clk 0:00:12.3]} 55...
Re1+ {[%clk 0:00:13.9]} 56. Kf6 {[%clk 0:00:11.7]} 56... Rd1 {[%clk 0:00:14.5]}
57. d6 {[%clk 0:00:09.6]} 57... Rd5 {[%clk 0:00:10.8]} 58. f5 {[%clk 0:00:08.7]}
58... Rd1 {[%clk 0:00:09.3]} 59. Kg6 {[%clk 0:00:09]} 59... Rg1+ {[%clk
0:00:09.9]} 60. Kf7 {[%clk 0:00:10.2]} 60... Rf1 {[%clk 0:00:10.6]} 61. f6
{[%clk 0:00:11.5]} 61... Rg1 {[%clk 0:00:11.3]} 62. Ra2 {[%clk 0:00:10.8]} 62...
Kxd6 {[%clk 0:00:11.2]} 63. Rd2+ {[%clk 0:00:09.5]} 63... Kc7 {[%clk 0:00:09.7]}
64. Ke7 {[%clk 0:00:09.7]} 64... Re1+ {[%clk 0:00:10]} 65. Kf8 {[%clk
0:00:11.3]} 65... Rf1 {[%clk 0:00:10]} 66. f7 {[%clk 0:00:12.6]} 66... Rg1
{[%clk 0:00:09.7]} 67. Rd4 {[%clk 0:00:09]} 67... Rg2 {[%clk 0:00:09.1]} 68. Ke7
{[%clk 0:00:09.3]} 68... Re2+ {[%clk 0:00:07]} 69. Kf6 {[%clk 0:00:10.4]} 69...
Rf2+ {[%clk 0:00:08]} 70. Ke6 {[%clk 0:00:11.4]} 70... Re2+ {[%clk 0:00:08.7]}
71. Kf5 {[%clk 0:00:11.5]} 71... Rf2+ {[%clk 0:00:09.7]} 72. Rf4 {[%clk
0:00:12.3]} 72... Rxf4+ {[%clk 0:00:10.5]} 73. Kxf4 {[%clk 0:00:13.4]} 1-0

[Event "GrandPrix_29.05"]
[Site "Chess.com"]
[Date "2020.05.29"]
[Round "1"]
[White "Bestromano"]
[Black "GrishaTheChamp"]
[Result "1/2-1/2"]
[WhiteElo "1722"]
[BlackElo "2240"]
[TimeControl "600+2"]
[EndTime "9:26:07 PDT"]
[Termination "Game drawn by repetition"]

1. e4 {[%clk 0:09:59.4]} 1... c5 {[%clk 0:10:00.6]} 2. Nf3 {[%clk 0:09:59.9]}
2... d6 {[%clk 0:09:59.5]} 3. d4 {[%clk 0:09:59]} 3... cxd4 {[%clk 0:10:00.8]}
4. Nxd4 {[%clk 0:10:00.9]} 4... Nf6 {[%clk 0:10:02.3]} 5. Nc3 {[%clk 0:10:02.1]}
5... Nc6 {[%clk 0:10:04]} 6. Be2 {[%clk 0:09:37.9]} 6... e5 {[%clk 0:09:53.8]}
7. Nb3 {[%clk 0:09:30.7]} 7... h6 {[%clk 0:09:31.3]} 8. O-O {[%clk 0:08:25.2]}
8... Be7 {[%clk 0:09:27.6]} 9. a4 {[%clk 0:08:08.7]} 9... Be6 {[%clk 0:09:21.9]}
10. a5 {[%clk 0:07:58]} 10... O-O {[%clk 0:08:50.1]} 11. a6 {[%clk 0:07:49.8]}
11... b6 {[%clk 0:08:28.1]} 12. Be3 {[%clk 0:07:20.8]} 12... d5 {[%clk
0:08:15.3]} 13. exd5 {[%clk 0:07:19.3]} 13... Nxd5 {[%clk 0:08:14.7]} 14. Nxd5
{[%clk 0:07:16.7]} 14... Bxd5 {[%clk 0:08:09.7]} 15. Nd2 {[%clk 0:06:05.2]}
15... Rc8 {[%clk 0:08:02.6]} 16. c3 {[%clk 0:05:53.4]} 16... f5 {[%clk
0:07:14.3]} 17. f4 {[%clk 0:05:38.8]} 17... e4 {[%clk 0:07:12.4]} 18. Qa4 {[%clk
0:05:28.6]} 18... Bc5 {[%clk 0:06:48.1]} 19. Bxc5 {[%clk 0:05:17.9]} 19... bxc5
{[%clk 0:06:50]} 20. Nc4 {[%clk 0:05:13.2]} 20... Qe7 {[%clk 0:06:41.2]} 21.
Rfd1 {[%clk 0:05:07.6]} 21... Rfd8 {[%clk 0:06:35.1]} 22. Ne3 {[%clk 0:05:08.4]}
22... Be6 {[%clk 0:06:31.4]} 23. Rxd8+ {[%clk 0:05:02.9]} 23... Nxd8 {[%clk
0:06:18.5]} 24. Rd1 {[%clk 0:04:58.5]} 24... Nf7 {[%clk 0:06:19.3]} 25. Bc4
{[%clk 0:04:48]} 25... Nd6 {[%clk 0:05:17.9]} 26. Bxe6+ {[%clk 0:03:02.2]} 26...
Qxe6 {[%clk 0:05:19.8]} 27. Rd5 {[%clk 0:02:49]} 27... g5 {[%clk 0:04:57.3]} 28.
Qd1 {[%clk 0:02:47.9]} 28... Rc6 {[%clk 0:04:42.3]} 29. fxg5 {[%clk 0:01:23.1]}
29... hxg5 {[%clk 0:04:35.6]} 30. Qh5 {[%clk 0:01:22.9]} 30... Nf7 {[%clk
0:03:09.6]} 31. Rxf5 {[%clk 0:00:49.3]} 31... Rxa6 {[%clk 0:03:08.9]} 32. Rf1
{[%clk 0:00:50.4]} 32... Qg6 {[%clk 0:02:53]} 33. Qg4 {[%clk 0:00:51.1]} 33...
Rf6 {[%clk 0:02:50.7]} 34. Rxf6 {[%clk 0:00:46.9]} 34... Qxf6 {[%clk 0:02:51.9]}
35. Qxe4 {[%clk 0:00:48.6]} 35... a6 {[%clk 0:01:55.6]} 36. h3 {[%clk
0:00:47.4]} 36... Qb6 {[%clk 0:01:43.3]} 37. Nc4 {[%clk 0:00:36.1]} 37... Qf6
{[%clk 0:01:41.6]} 38. g3 {[%clk 0:00:22.7]} 38... Kg7 {[%clk 0:01:38]} 39. Kg2
{[%clk 0:00:23.9]} 39... Qd8 {[%clk 0:01:19.8]} 40. Kf2 {[%clk 0:00:16.5]} 40...
Qd1 {[%clk 0:01:17.9]} 41. Qe2 {[%clk 0:00:17.9]} 41... Qd5 {[%clk 0:01:17.5]}
42. Ne3 {[%clk 0:00:18.8]} 42... Qe4 {[%clk 0:01:13.2]} 43. Qc4 {[%clk
0:00:18.7]} 43... Qe5 {[%clk 0:01:08.9]} 44. Qxa6 {[%clk 0:00:18.9]} 44... Qe4
{[%clk 0:01:03.9]} 45. Qc4 {[%clk 0:00:19.2]} 45... Qb1 {[%clk 0:01:03.8]} 46.
Qe2 {[%clk 0:00:20.2]} 46... Qe4 {[%clk 0:01:02.7]} 47. Qf3 {[%clk 0:00:20.9]}
47... Qb1 {[%clk 0:00:59.5]} 48. Nf5+ {[%clk 0:00:22.8]} 48... Kg6 {[%clk
0:00:48.4]} 49. Ne7+ {[%clk 0:00:23.6]} 49... Kg7 {[%clk 0:00:49.6]} 50. Nf5+
{[%clk 0:00:24.2]} 50... Kg6 {[%clk 0:00:50.9]} 51. Ne7+ {[%clk 0:00:24.7]}
51... Kg7 {[%clk 0:00:52]} 52. Qe2 {[%clk 0:00:26.3]} 52... Qh1 {[%clk
0:00:30.2]} 53. Qf1 {[%clk 0:00:15.8]} 53... Qe4 {[%clk 0:00:27.7]} 54. Qe2
{[%clk 0:00:16.9]} 54... Qh1 {[%clk 0:00:28.7]} 55. Qf3 {[%clk 0:00:16.7]} 55...
Qxh3 {[%clk 0:00:26.2]} 56. Nf5+ {[%clk 0:00:18.1]} 56... Kg6 {[%clk 0:00:23.2]}
57. Ne3 {[%clk 0:00:20]} 57... Qe6 {[%clk 0:00:23.1]} 58. g4 {[%clk 0:00:20.3]}
58... Nd6 {[%clk 0:00:22.5]} 59. Ke2 {[%clk 0:00:21.9]} 59... c4 {[%clk
0:00:19.7]} 60. Qd5 {[%clk 0:00:21.4]} 60... Qe7 {[%clk 0:00:18.7]} 61. Kd2
{[%clk 0:00:21]} 61... Ne4+ {[%clk 0:00:19.6]} 62. Kc2 {[%clk 0:00:22.4]} 62...
Nd6 {[%clk 0:00:19.4]} 63. Qf3 {[%clk 0:00:23.8]} 63... Qe5 {[%clk 0:00:18.3]}
64. Kd2 {[%clk 0:00:24.8]} 64... Ne4+ {[%clk 0:00:18.6]} 65. Ke2 {[%clk
0:00:25.7]} 65... Ng3+ {[%clk 0:00:18.3]} 66. Kf2 {[%clk 0:00:27.2]} 66... Ne4+
{[%clk 0:00:19.4]} 67. Kg2 {[%clk 0:00:28.7]} 67... Nd6 {[%clk 0:00:20.4]} 68.
Nf1 {[%clk 0:00:28.2]} 68... Qe1 {[%clk 0:00:17.4]} 69. Qd5 {[%clk 0:00:25.6]}
69... Ne4 {[%clk 0:00:12.6]} 70. Qe6+ {[%clk 0:00:25.2]} 70... Kg7 {[%clk
0:00:13.2]} 71. Qe7+ {[%clk 0:00:25.8]} 71... Kg6 {[%clk 0:00:14.2]} 72. Qe6+
{[%clk 0:00:27.3]} 72... Kg7 {[%clk 0:00:15.5]} 73. Qe5+ {[%clk 0:00:28.8]}
73... Kg6 {[%clk 0:00:16.9]} 74. Qf5+ {[%clk 0:00:30.1]} 74... Kg7 {[%clk
0:00:17.6]} 75. Qe5+ {[%clk 0:00:31.5]} 75... Kg6 {[%clk 0:00:18.8]} 76. Qf5+
{[%clk 0:00:24.1]} 76... Kg7 {[%clk 0:00:20]} 77. Qd7+ {[%clk 0:00:21.2]} 77...
Kg6 {[%clk 0:00:20.1]} 78. Qf5+ {[%clk 0:00:18.3]} 1/2-1/2

[Event "GrandPrix_29.05"]
[Site "Chess.com"]
[Date "2020.05.29"]
[Round "1"]
[White "Meri-Arabidze"]
[Black "IMTominho"]
[Result "1/2-1/2"]
[WhiteElo "2193"]
[BlackElo "1975"]
[TimeControl "600+2"]
[EndTime "9:26:09 PDT"]
[Termination "Game drawn - insufficient material"]

1. d4 {[%clk 0:10:00.3]} 1... d5 {[%clk 0:09:55.8]} 2. c4 {[%clk 0:10:00.4]}
2... c6 {[%clk 0:09:56]} 3. Nf3 {[%clk 0:10:00]} 3... Nf6 {[%clk 0:09:55.8]} 4.
e3 {[%clk 0:09:57.1]} 4... Bf5 {[%clk 0:09:52.7]} 5. Nc3 {[%clk 0:09:49.8]} 5...
e6 {[%clk 0:09:49.9]} 6. Nh4 {[%clk 0:09:48.7]} 6... Be4 {[%clk 0:09:47.8]} 7.
f3 {[%clk 0:09:46]} 7... Bg6 {[%clk 0:09:45.6]} 8. Qb3 {[%clk 0:09:45.5]} 8...
Qc7 {[%clk 0:09:02.8]} 9. g3 {[%clk 0:09:32.5]} 9... Nbd7 {[%clk 0:08:39.6]} 10.
Bd2 {[%clk 0:09:30.2]} 10... Be7 {[%clk 0:08:15.3]} 11. Kf2 {[%clk 0:09:19]}
11... O-O {[%clk 0:07:50.7]} 12. Nxg6 {[%clk 0:09:17.6]} 12... hxg6 {[%clk
0:07:50.8]} 13. Rc1 {[%clk 0:09:16.9]} 13... Rac8 {[%clk 0:07:47.2]} 14. Be2
{[%clk 0:09:02.3]} 14... Qb8 {[%clk 0:07:27.4]} 15. Kg2 {[%clk 0:08:47.8]} 15...
a6 {[%clk 0:07:05.6]} 16. cxd5 {[%clk 0:07:41.9]} 16... exd5 {[%clk 0:06:44.8]}
17. Rhd1 {[%clk 0:06:26.4]} 17... b5 {[%clk 0:05:51.9]} 18. Be1 {[%clk
0:06:14.6]} 18... Nb6 {[%clk 0:05:37.7]} 19. Bf2 {[%clk 0:06:05.5]} 19... Rfe8
{[%clk 0:05:28.2]} 20. Qc2 {[%clk 0:05:04.9]} 20... Bb4 {[%clk 0:05:12.2]} 21.
Bd3 {[%clk 0:04:47.7]} 21... c5 {[%clk 0:05:02]} 22. a3 {[%clk 0:04:00]} 22...
cxd4 {[%clk 0:02:58.6]} 23. exd4 {[%clk 0:03:58.4]} 23... Bxc3 {[%clk
0:02:57.2]} 24. bxc3 {[%clk 0:03:58.3]} 24... Qd6 {[%clk 0:02:54]} 25. Qb3
{[%clk 0:02:27.7]} 25... Rc6 {[%clk 0:02:49.1]} 26. g4 {[%clk 0:02:16.3]} 26...
Rec8 {[%clk 0:02:44.6]} 27. Bg3 {[%clk 0:02:11.6]} 27... Qd7 {[%clk 0:02:43.6]}
28. Rc2 {[%clk 0:01:55.1]} 28... Nc4 {[%clk 0:02:30.8]} 29. Re1 {[%clk
0:01:49.2]} 29... Nb6 {[%clk 0:02:28.2]} 30. h4 {[%clk 0:01:36.1]} 30... Na4
{[%clk 0:02:25.8]} 31. Rec1 {[%clk 0:01:36.9]} 31... Re8 {[%clk 0:02:13.3]} 32.
Re2 {[%clk 0:00:56.2]} 32... Rxe2+ {[%clk 0:02:05.4]} 33. Bxe2 {[%clk
0:00:57.2]} 33... Qe7 {[%clk 0:02:07.1]} 34. Kf2 {[%clk 0:00:53.3]} 34... Re6
{[%clk 0:01:30.2]} 35. Qd1 {[%clk 0:00:52.5]} 35... Nd7 {[%clk 0:01:25.6]} 36.
Bd3 {[%clk 0:00:41.1]} 36... Qxa3 {[%clk 0:01:24.4]} 37. Qd2 {[%clk 0:00:42]}
37... Qb2 {[%clk 0:01:20.7]} 38. Rc2 {[%clk 0:00:39.9]} 38... Qa3 {[%clk
0:01:17.1]} 39. h5 {[%clk 0:00:38.1]} 39... gxh5 {[%clk 0:01:11.4]} 40. Bf5
{[%clk 0:00:38.2]} 40... Re7 {[%clk 0:01:06.4]} 41. Bh4 {[%clk 0:00:37.6]} 41...
f6 {[%clk 0:01:05]} 42. gxh5 {[%clk 0:00:38.3]} 42... Nf8 {[%clk 0:01:01.9]} 43.
h6 {[%clk 0:00:37.9]} 43... Qd6 {[%clk 0:00:59.5]} 44. Bg3 {[%clk 0:00:37.6]}
44... Qd8 {[%clk 0:00:58.7]} 45. hxg7 {[%clk 0:00:34.3]} 45... Rxg7 {[%clk
0:01:00.6]} 46. Rc1 {[%clk 0:00:33]} 46... Rg5 {[%clk 0:00:42.9]} 47. Qf4 {[%clk
0:00:31.3]} 47... Qe8 {[%clk 0:00:30.3]} 48. Rh1 {[%clk 0:00:26.2]} 48... Nxc3
{[%clk 0:00:26.4]} 49. Bd3 {[%clk 0:00:24.9]} 49... Qe7 {[%clk 0:00:20.8]} 50.
Bh4 {[%clk 0:00:25.3]} 50... Ne6 {[%clk 0:00:16.4]} 51. Qb8+ {[%clk 0:00:24.3]}
51... Nf8 {[%clk 0:00:11.6]} 52. Bxg5 {[%clk 0:00:24.9]} 52... fxg5 {[%clk
0:00:13.5]} 53. Qb6 {[%clk 0:00:21.7]} 53... Qg7 {[%clk 0:00:07.8]} 54. Rg1
{[%clk 0:00:17.5]} 54... Na4 {[%clk 0:00:06.4]} 55. Qd8 {[%clk 0:00:09.2]} 55...
Qxd4+ {[%clk 0:00:05]} 56. Kg2 {[%clk 0:00:10.6]} 56... Qxd3 {[%clk 0:00:06.1]}
57. Qxg5+ {[%clk 0:00:10.8]} 57... Qg6 {[%clk 0:00:07.4]} 58. Kf2 {[%clk
0:00:09.8]} 58... Qxg5 {[%clk 0:00:08.6]} 59. Rxg5+ {[%clk 0:00:11.1]} 59... Kf7
{[%clk 0:00:10.5]} 60. Rxd5 {[%clk 0:00:12.5]} 60... Ke6 {[%clk 0:00:11.9]} 61.
Rd8 {[%clk 0:00:13.1]} 61... Nd7 {[%clk 0:00:13]} 62. Ra8 {[%clk 0:00:13.9]}
62... Nac5 {[%clk 0:00:13.4]} 63. Ke3 {[%clk 0:00:15]} 63... b4 {[%clk
0:00:14.4]} 64. Kd4 {[%clk 0:00:15.7]} 64... b3 {[%clk 0:00:15.1]} 65. Kc3
{[%clk 0:00:17]} 65... Nb6 {[%clk 0:00:15]} 66. Rb8 {[%clk 0:00:16]} 66... Nba4+
{[%clk 0:00:15.8]} 67. Kc4 {[%clk 0:00:13.8]} 67... b2 {[%clk 0:00:16.8]} 68.
Rxb2 {[%clk 0:00:07]} 68... Nxb2+ {[%clk 0:00:12]} 69. Kxc5 {[%clk 0:00:08.4]}
69... Na4+ {[%clk 0:00:08.1]} 70. Kb4 {[%clk 0:00:07.3]} 70... Nc5 {[%clk
0:00:03.5]} 71. Kxc5 {[%clk 0:00:07.8]} 71... Ke5 {[%clk 0:00:05.4]} 72. Kb6
{[%clk 0:00:08.9]} 72... Kf4 {[%clk 0:00:07.3]} 73. Kxa6 {[%clk 0:00:10.3]}
73... Kxf3 {[%clk 0:00:09.2]} 1/2-1/2

[Event "GrandPrix_29.05"]
[Site "Chess.com"]
[Date "2020.05.29"]
[Round "1"]
[White "guylevin1"]
[Black "Firegrizzly"]
[Result "1/2-1/2"]
[WhiteElo "2118"]
[BlackElo "2297"]
[TimeControl "600+2"]
[EndTime "9:26:36 PDT"]
[Termination "Game drawn - insufficient material"]

1. c4 {[%clk 0:09:57.6]} 1... e5 {[%clk 0:09:58.2]} 2. Nc3 {[%clk 0:09:57]} 2...
Bb4 {[%clk 0:09:57.4]} 3. Nd5 {[%clk 0:09:56.8]} 3... Be7 {[%clk 0:09:53.2]} 4.
d4 {[%clk 0:09:55.3]} 4... d6 {[%clk 0:09:53.8]} 5. e4 {[%clk 0:09:54.8]} 5...
Nf6 {[%clk 0:09:53.5]} 6. Nxf6+ {[%clk 0:09:31.4]} 6... Bxf6 {[%clk 0:09:52.3]}
7. Be3 {[%clk 0:09:31.9]} 7... exd4 {[%clk 0:09:38.7]} 8. Bxd4 {[%clk
0:09:32.4]} 8... Nc6 {[%clk 0:09:39.5]} 9. Bxf6 {[%clk 0:09:24.7]} 9... Qxf6
{[%clk 0:09:39.8]} 10. Qd2 {[%clk 0:09:25.3]} 10... O-O {[%clk 0:09:36.5]} 11.
Ne2 {[%clk 0:08:27.6]} 11... Re8 {[%clk 0:09:28.4]} 12. Nc3 {[%clk 0:08:23.1]}
12... a5 {[%clk 0:09:21.9]} 13. Be2 {[%clk 0:08:20.7]} 13... Be6 {[%clk
0:07:57.1]} 14. O-O {[%clk 0:08:09.5]} 14... a4 {[%clk 0:07:52.6]} 15. f4 {[%clk
0:07:51.2]} 15... Na5 {[%clk 0:07:40.8]} 16. Nb5 {[%clk 0:05:35.8]} 16... Qd8
{[%clk 0:07:12.1]} 17. Rac1 {[%clk 0:05:23.5]} 17... Bd7 {[%clk 0:07:05.8]} 18.
Nc3 {[%clk 0:05:18.6]} 18... Qb8 {[%clk 0:06:03]} 19. f5 {[%clk 0:04:06.4]}
19... f6 {[%clk 0:05:45.3]} 20. c5 {[%clk 0:03:59.1]} 20... Bc6 {[%clk
0:05:09.8]} 21. cxd6 {[%clk 0:03:57.3]} 21... cxd6 {[%clk 0:05:07]} 22. Rfd1
{[%clk 0:03:50.3]} 22... Qa7+ {[%clk 0:04:28.8]} 23. Kh1 {[%clk 0:03:44.3]}
23... Qb6 {[%clk 0:04:15.4]} 24. Rc2 {[%clk 0:03:13.4]} 24... Rad8 {[%clk
0:04:08.9]} 25. Qd4 {[%clk 0:03:06.7]} 25... Qc5 {[%clk 0:03:51]} 26. Rcd2
{[%clk 0:02:57.6]} 26... Qxd4 {[%clk 0:03:29.2]} 27. Rxd4 {[%clk 0:02:58]} 27...
g6 {[%clk 0:03:17.2]} 28. fxg6 {[%clk 0:02:13.1]} 28... hxg6 {[%clk 0:03:16.6]}
29. Bb5 {[%clk 0:02:14.6]} 29... Kf7 {[%clk 0:02:36.4]} 30. Rxa4 {[%clk
0:02:09.8]} 30... Bxb5 {[%clk 0:02:06.6]} 31. Nxb5 {[%clk 0:02:10.4]} 31... Nc6
{[%clk 0:02:07.8]} 32. Rxd6 {[%clk 0:01:55.6]} 32... Ke7 {[%clk 0:01:48.8]} 33.
Rxd8 {[%clk 0:01:55.9]} 33... Rxd8 {[%clk 0:01:50]} 34. h3 {[%clk 0:01:41.2]}
34... Rd2 {[%clk 0:01:49.5]} 35. b3 {[%clk 0:01:38.3]} 35... Ke6 {[%clk
0:01:30.3]} 36. Na7 {[%clk 0:01:14.1]} 36... Nd4 {[%clk 0:01:13.6]} 37. Rb4
{[%clk 0:01:13]} 37... Ke5 {[%clk 0:01:09.9]} 38. Rxb7 {[%clk 0:01:08.7]} 38...
Kf4 {[%clk 0:01:03.3]} 39. Rc7 {[%clk 0:00:49.6]} 39... Rxa2 {[%clk 0:00:58]}
40. Nc6 {[%clk 0:00:41.3]} 40... Ne6 {[%clk 0:00:49.9]} 41. Rd7 {[%clk 0:00:34]}
41... Nc5 {[%clk 0:00:44.3]} 42. Rd1 {[%clk 0:00:19.1]} 42... Kg3 {[%clk
0:00:41.2]} 43. e5 {[%clk 0:00:14.6]} 43... Ra6 {[%clk 0:00:29.2]} 44. exf6
{[%clk 0:00:14.5]} 44... Rxc6 {[%clk 0:00:28.9]} 45. Rf1 {[%clk 0:00:15.3]}
45... Nd7 {[%clk 0:00:27.5]} 46. f7 {[%clk 0:00:15.8]} 46... Nf8 {[%clk
0:00:28.2]} 47. b4 {[%clk 0:00:13]} 47... Rb6 {[%clk 0:00:28.5]} 48. Rf3+ {[%clk
0:00:06.3]} 48... Kh4 {[%clk 0:00:28.5]} 49. Rf4+ {[%clk 0:00:07.7]} 49... Kg5
{[%clk 0:00:28.5]} 50. Re4 {[%clk 0:00:09.1]} 50... Kf6 {[%clk 0:00:28.1]} 51.
Kh2 {[%clk 0:00:09.8]} 51... Kxf7 {[%clk 0:00:28.7]} 52. h4 {[%clk 0:00:11.2]}
52... Nh7 {[%clk 0:00:28.7]} 53. g4 {[%clk 0:00:11.9]} 53... Nf6 {[%clk
0:00:29.9]} 54. Rf4 {[%clk 0:00:12.9]} 54... Ke6 {[%clk 0:00:30.4]} 55. Kh3
{[%clk 0:00:08.7]} 55... Rc6 {[%clk 0:00:30.1]} 56. Kg2 {[%clk 0:00:04.8]} 56...
Ke5 {[%clk 0:00:29.7]} 57. Rf2 {[%clk 0:00:03]} 57... Nxg4 {[%clk 0:00:29.1]}
58. Re2+ {[%clk 0:00:04.3]} 58... Kf5 {[%clk 0:00:29.6]} 59. Rb2 {[%clk
0:00:05.7]} 59... Ne3+ {[%clk 0:00:28.3]} 60. Kf3 {[%clk 0:00:07]} 60... Nc4
{[%clk 0:00:29]} 61. Rg2 {[%clk 0:00:05.8]} 61... Ne5+ {[%clk 0:00:29.4]} 62.
Ke3 {[%clk 0:00:07.3]} 62... Rc3+ {[%clk 0:00:30.3]} 63. Kd4 {[%clk 0:00:07.9]}
63... Rd3+ {[%clk 0:00:29.2]} 64. Kc5 {[%clk 0:00:09.2]} 64... Ke6 {[%clk
0:00:29.4]} 65. b5 {[%clk 0:00:09.2]} 65... Rc3+ {[%clk 0:00:30.1]} 66. Kb6
{[%clk 0:00:10]} 66... Nc4+ {[%clk 0:00:30]} 67. Kb7 {[%clk 0:00:08.1]} 67...
Nd6+ {[%clk 0:00:29.6]} 68. Kb6 {[%clk 0:00:09.4]} 68... Kf6 {[%clk 0:00:29.1]}
69. Rf2+ {[%clk 0:00:09.6]} 69... Nf5 {[%clk 0:00:28.5]} 70. Kb7 {[%clk
0:00:09.5]} 70... Rc4 {[%clk 0:00:26.4]} 71. b6 {[%clk 0:00:09.9]} 71... Rxh4
{[%clk 0:00:28]} 72. Ka8 {[%clk 0:00:10.6]} 72... Ra4+ {[%clk 0:00:28.8]} 73.
Kb8 {[%clk 0:00:11.3]} 73... Rb4 {[%clk 0:00:29.9]} 74. b7 {[%clk 0:00:12.5]}
74... Kg7 {[%clk 0:00:31.1]} 75. Ka7 {[%clk 0:00:12.7]} 75... Ra4+ {[%clk
0:00:30.8]} 76. Kb6 {[%clk 0:00:12]} 76... Rb4+ {[%clk 0:00:31.6]} 77. Ka7
{[%clk 0:00:12.4]} 77... Ne7 {[%clk 0:00:31]} 78. Rc2 {[%clk 0:00:08.1]} 78...
Ra4+ {[%clk 0:00:31.6]} 79. Kb6 {[%clk 0:00:08.8]} 79... Rb4+ {[%clk 0:00:30.5]}
80. Ka7 {[%clk 0:00:10]} 80... g5 {[%clk 0:00:29.7]} 81. b8=Q {[%clk 0:00:10]}
81... Rxb8 {[%clk 0:00:30.5]} 82. Kxb8 {[%clk 0:00:11.9]} 82... Kf6 {[%clk
0:00:31.6]} 83. Rg2 {[%clk 0:00:12.8]} 83... Nf5 {[%clk 0:00:31.1]} 84. Rxg5
{[%clk 0:00:14]} 84... Kxg5 {[%clk 0:00:29.5]} 1/2-1/2